bitfinex/quotes_SOLUSD_20251206
["timestamp","ask_amount","ask_price","bid_price","bid_amount"]
[1764990566701,8.16721751,134.1,134.06,7.45917548]
[1764990566879,0.71,134.09,134.08,4.67366771]
[1764990567706,8.16721751,134.1,134.08,4.67366771]
[1764990567879,8.16721751,134.1,134.09,4.67366771]
[1764990568085,7.45721751,134.1,134.09,4.67366771]
[1764990568284,110.054229,134.11,134.09,4.67366771]
[1764990568980,8.16671354,134.11,134.09,4.67366771]
[1764990569309,8.16671354,134.11,134.1,4.67366771]
[1764990571627,8.16671354,134.11,134.06,7.45934656]
[1764990571819,7.45671354,134.11,134.1,4.67366771]
[1764990572014,7.45615719,134.12,134.1,4.67366771]
[1764990572328,0.71,134.13,134.11,4.67366771]
[1764990572525,0.71,134.12,134.1,4.67366771]
[1764990573614,8.16618105,134.12,134.1,4.67366771]
[1764990573820,0.71,134.11,134.1,4.67366771]
[1764990574522,0.71,134.11,134.1,2.98992403]
[1764990576323,7.45618105,134.12,134.1,2.98992403]
[1764990576531,8.16618105,134.12,134.11,2.98992403]
[1764990577225,8.16489786,134.14,134.11,2.98992403]
[1764990577430,0.71,134.13,134.12,2.98992403]
[1764990579616,8.16489786,134.14,134.12,2.98992403]
[1764990580215,7.45489786,134.14,134.12,2.98992403]
[1764990580514,120.52220063,134.16,134.13,2.98992403]
[1764990581029,7.45468272,134.15,134.13,2.98992403]
[1764990581220,8.16468272,134.15,134.13,2.98992403]
[1764990581530,0.71,134.14,134.1,7.45693347]
[1764990581834,8.16489786,134.14,134.13,2.98992403]
[1764990584234,102.59751546,134.16,134.13,2.98992403]
[1764990584423,102.59751546,134.16,134.09,18.6432168]
[1764990584424,0.1,134.17,134.15,2.98992403]
[1764990585026,0.71,134.16,134.15,2.98992403]
[1764990585225,0.71,134.16,134.14,2.98992403]
[1764990585518,8.16398909,134.16,134.13,2.98992403]
[1764990585912,0.71,134.15,134.13,2.98992403]
[1764990587238,7.45489786,134.14,134.1,15.67675197]
[1764990587428,7.45489786,134.14,134.12,2.98992403]
[1764990587619,0.71,134.13,134.12,2.98992403]
[1764990590817,8.16545366,134.13,134.12,2.98992403]
[1764990592136,0.71,134.13,134.12,2.98992403]
[1764990594157,8.16545943,134.13,134.11,2.98992403]
[1764990594722,0.72,134.12,134.1,2.98992403]
[1764990595839,8.17639599,134.12,134.1,2.98992403]
[1764990596237,0.72,134.11,134.1,2.98992403]
[1764990597542,8.1765655,134.11,134.07,15.67861482]
[1764990597733,8.1765655,134.11,134.09,2.98992403]
[1764990598040,0.72,134.1,134.09,2.98992403]
[1764990599345,8.17712155,134.1,134.09,2.98992403]
[1764990600752,8.17712155,134.1,134.05,27.63939412]
[1764990600955,8.17676491,134.11,134.09,2.98992403]
[1764990601324,7.45676491,134.11,134.1,2.98992403]
[1764990601829,8.17676491,134.11,134.1,2.98992403]
[1764990603051,8.17676491,134.11,134.08,2.98992403]
[1764990603254,0.72,134.1,134.08,2.98992403]
[1764990604054,8.17713569,134.1,134.08,2.98992403]
[1764990604253,8.17713569,134.1,134.07,2.98992403]
[1764990604549,0.72,134.09,134.07,2.98992403]
[1764990605746,8.17791027,134.09,134.05,15.67966885]
[1764990605950,8.17791027,134.09,134.07,2.98992403]
[1764990606152,0.72,134.08,134.07,2.98992403]
[1764990607858,0.72,134.08,134.06,2.98992403]
[1764990608041,8.17838889,134.08,134.05,8.22]
[1764990608353,8.17838889,134.08,134.04,7.46029413]
[1764990608354,8.17838889,134.08,134.04,2.98992403]
[1764990608541,0.72,134.07,134.04,2.98992403]
[1764990610253,7.45934656,134.06,134.04,2.98992403]
[1764990610451,7.45934656,134.06,134.02,21.63480526]
[1764990610652,0.69,134.05,134.01,2.98992403]
[1764990610971,0.69,134.05,134.01,11.20992403]
[1764990611132,0.69,134.05,134.02,2.98992403]
[1764990613068,7.46045956,134.04,134.02,2.98992403]
[1764990613851,8.15045956,134.04,134.02,2.98992403]
[1764990614058,0.69,134.03,134.02,2.98992403]
[1764990616057,0.69,134.03,134.01,11.20992403]
[1764990616570,0.69,134.03,134.01,10.70992403]
[1764990619748,8.15126973,134.03,134.01,10.70992403]
[1764990620049,8.15126973,134.03,133.98,21.91984806]
[1764990620349,0.69,134.02,134.0,2.98992403]
[1764990622057,101.88751546,134.07,134.01,11.20992403]
[1764990622266,0.69,134.06,134.03,2.98992403]
[1764990623158,8.14988408,134.06,134.03,2.98992403]
[1764990623567,0.69,134.05,134.02,2.98992403]
[1764990624976,0.69,134.05,134.01,8.22]
[1764990625180,8.1499988,134.05,134.02,2.98992403]
[1764990625658,0.69,134.04,134.02,2.98992403]
[1764990631782,8.15050702,134.04,134.02,2.98992403]
[1764990631982,0.69,134.04,134.02,2.98992403]
[1764990633989,8.15050816,134.04,134.02,2.98992403]
[1764990634386,8.15050816,134.04,134.02,4.67729941]
[1764990634608,0.69,134.04,134.02,4.67729941]
[1764990635458,7.45950308,134.06,134.01,15.68194289]
[1764990635766,8.14950308,134.06,134.03,4.67729941]
[1764990635981,0.69,134.05,134.03,4.67729941]
[1764990636405,0.69,134.05,134.01,8.22]
[1764990636681,0.69,134.05,134.02,4.67729941]
[1764990637592,8.15026511,134.05,134.02,4.67729941]
[1764990638164,0.69,134.04,134.02,12.89729941]
[1764990638692,0.71,134.06,134.03,4.67729941]
[1764990638896,8.16879018,134.07,134.05,4.67729941]
[1764990639187,0.71,134.06,134.05,4.67729941]
[1764990640087,8.16937638,134.06,134.05,4.67729941]
[1764990640783,0.71,134.06,134.05,4.67729941]
[1764990641194,0.71,134.08,134.05,12.13712025]
[1764990641481,7.45784545,134.09,134.07,4.67729941]
[1764990641963,0.71,134.08,134.07,4.67729941]
[1764990645586,0.71,134.08,134.05,15.67943445]
[1764990645786,0.71,134.08,134.07,4.67729941]
[1764990652504,8.15727936,134.1,134.07,4.67729941]
[1764990652803,0.7,134.09,134.06,7.45927971]
[1764990652993,0.7,134.09,134.08,4.67729941]
[1764990655185,0.7,134.09,134.05,12.89729941]
[1764990655186,0.7,134.09,134.05,15.67969438]
[1764990655385,0.7,134.09,134.07,4.67729941]
[1764990655889,8.15790954,134.09,134.07,4.67729941]
[1764990656180,8.15790954,134.09,134.05,4.67729941]
[1764990656389,0.7,134.08,134.05,12.89729941]
[1764990656588,0.7,134.08,134.06,4.67729941]
[1764990657198,0.7,134.09,134.07,4.67729941]
[1764990657503,0.7,134.08,134.05,12.89729941]
[1764990658213,0.7,134.08,134.06,7.45933843]
[1764990658584,0.7,134.08,134.07,4.67729941]
[1764990661296,0.7,134.08,134.05,15.67985456]
[1764990661494,0.7,134.08,134.06,4.67729941]
[1764990661821,8.15825169,134.08,134.05,12.89729941]
[1764990662316,0.7,134.07,134.05,4.67729941]
[1764990662517,0.7,134.07,134.04,8.22]
[1764990662685,0.7,134.07,134.05,4.67729941]
[1764990662892,0.7,134.07,134.04,8.22]
[1764990663100,0.7,134.07,134.05,4.67729941]
[1764990663611,8.15880309,134.07,134.05,4.67729941]
[1764990663997,0.7,134.06,134.05,4.67729941]
[1764990667921,8.15934656,134.06,134.05,4.67729941]
[1764990668232,0.7,134.06,134.05,4.67729941]
[1764990670607,8.15934656,134.06,134.05,4.67729941]
[1764990670809,8.15934656,134.06,134.04,12.89729941]
[1764990671010,0.68,134.08,134.05,4.67729941]
[1764990671314,0.68,134.08,134.07,4.67729941]
[1764990672032,101.88751546,134.09,134.07,12.89729941]
[1764990672204,102.56751546,134.09,134.08,4.67729941]
[1764990672404,0.68,134.09,134.08,4.67729941]
[1764990675932,8.1365655,134.11,134.08,4.67729941]
[1764990676118,8.1365655,134.11,134.07,8.22]
[1764990676119,8.1365655,134.11,134.09,4.67729941]
[1764990676319,0.68,134.1,134.09,4.67729941]
[1764990676946,0.68,134.1,134.07,8.22]
[1764990677120,0.68,134.1,134.09,4.67729941]
[1764990678347,8.13712155,134.1,134.09,4.67729941]
[1764990679649,0.68,134.1,134.09,4.67729941]
[1764990681637,0.68,134.1,134.07,15.67866816]
[1764990681841,0.68,134.1,134.09,4.67729941]
[1764990682415,0.68,134.1,134.08,4.67729941]
[1764990682742,8.1374849,134.1,134.08,4.67729941]
[1764990683113,0.68,134.09,134.08,4.67729941]
[1764990685137,0.68,134.09,134.07,15.67876668]
[1764990685348,0.68,134.09,134.08,4.67729941]
[1764990685743,0.68,134.09,134.07,15.67876668]
[1764990685927,0.68,134.09,134.08,4.67729941]
[1764990686129,0.68,134.09,134.07,8.22]
[1764990686333,0.68,134.09,134.08,4.67729941]
[1764990696351,0.68,134.09,134.08,2.99062387]
[1764990698654,8.13777009,134.09,134.04,16.308864]
[1764990698957,0.68,134.09,134.08,2.99062387]
[1764990699162,0.7,134.09,134.08,2.99062387]
[1764990699564,0.7,134.09,134.07,2.99062387]
[1764990700929,0.7,134.09,134.08,2.99062387]
[1764990706969,0.7,134.1,134.08,10.44885121]
[1764990707276,0.7,134.1,134.09,2.99062387]
[1764990707434,109.34373183,134.12,134.09,2.99062387]
[1764990707628,0.7,134.11,134.1,2.99062387]
[1764990707867,8.15621637,134.12,134.1,2.99062387]
[1764990708071,0.7,134.11,134.1,2.99062387]
[1764990708757,8.12545366,134.13,134.1,2.99062387]
[1764990708935,8.12545366,134.13,134.12,2.99062387]
[1764990709257,7.45545366,134.13,134.12,2.99062387]
[1764990709866,8.12545366,134.13,134.12,2.99062387]
[1764990710239,8.12545366,134.13,134.11,2.99062387]
[1764990710435,7.45489786,134.14,134.09,7.45743805]
[1764990710641,7.45489786,134.14,134.11,2.99062387]
[1764990710960,0.67,134.13,134.11,2.99062387]
[1764990713075,8.12552899,134.13,134.08,15.67809813]
[1764990713248,8.12552899,134.13,134.11,2.99062387]
[1764990713452,0.67,134.12,134.11,2.99062387]
[1764990714747,0.67,134.13,134.11,2.99062387]
[1764990714944,0.67,134.13,134.08,26.8654027]
[1764990714945,0.67,134.13,134.12,2.99062387]
[1764990716972,0.67,134.15,134.12,11.21062387]
[1764990717149,7.45393556,134.16,134.14,2.99062387]
[1764990717851,0.67,134.15,134.14,2.99062387]
[1764990720776,8.12434215,134.15,134.12,8.22]
[1764990720963,8.12434215,134.15,134.12,11.21062387]
[1764990721166,0.67,134.14,134.12,11.21062387]
[1764990721490,0.67,134.14,134.12,8.22]
[1764990721865,0.67,134.14,134.11,11.21062387]
[1764990722067,8.12507058,134.14,134.11,11.21062387]
[1764990722758,0.67,134.15,134.13,2.99062387]
[1764990722960,0.67,134.15,134.14,2.99062387]
[1764990724981,8.12449083,134.15,134.13,2.99062387]
[1764990725168,8.12449083,134.15,134.12,2.99062387]
[1764990725487,0.67,134.14,134.12,2.99062387]
[1764990725868,0.67,134.14,134.11,2.99062387]
[1764990726077,8.12540963,134.14,134.1,8.22]
[1764990726370,8.12540963,134.14,134.11,2.99062387]
[1764990726681,0.67,134.13,134.11,2.99062387]
[1764990727182,0.67,134.13,134.12,2.99062387]
[1764990730289,26.79019753,134.15,134.12,2.99062387]
[1764990730477,0.7,134.14,134.1,15.67699008]
[1764990730684,0.7,134.14,134.12,2.99062387]
[1764990731988,8.15505118,134.14,134.12,2.99062387]
[1764990732188,0.7,134.13,134.12,2.99062387]
[1764990744078,0.7,134.14,134.12,10.44659169]
[1764990744281,0.7,134.14,134.13,2.99062387]
[1764990745088,0.7,134.16,134.13,11.21062387]
[1764990745294,0.7,134.16,134.15,2.99062387]
[1764990745499,0.1,134.17,134.15,2.99062387]
[1764990745671,0.1,134.17,134.16,8.22]
[1764990745876,0.1,134.17,134.16,11.21062387]
[1764990746482,0.1,134.17,134.12,7.55160227]
[1764990746483,0.8,134.17,134.12,7.55160227]
[1764990746792,2.99062387,134.16,134.11,2.99062387]
[1764990747101,2.99062387,134.16,134.12,2.99062387]
[1764990747285,0.7,134.15,134.12,2.99062387]
[1764990747794,8.15444865,134.15,134.12,2.99062387]
[1764990748200,0.7,134.14,134.11,11.21062387]
[1764990749200,0.7,134.14,134.11,8.22]
[1764990749597,0.7,134.14,134.11,11.21062387]
[1764990750503,7.45545366,134.13,134.11,11.21062387]
[1764990751002,0.7,134.12,134.11,11.21062387]
[1764990751383,0.7,134.12,134.06,18.64380379]
[1764990751687,0.7,134.12,134.08,2.99062387]
[1764990752491,7.4565655,134.11,134.08,2.99062387]
[1764990753102,0.7,134.1,134.08,2.99062387]
[1764990753283,0.7,134.12,134.07,8.22]
[1764990753980,0.7,134.12,134.1,2.99062387]
[1764990754608,0.7,134.12,134.09,2.99062387]
[1764990756207,0.7,134.12,134.08,7.45816448]
[1764990756686,0.7,134.12,134.09,4.6719957]
[1764990757202,8.1562177,134.12,134.09,4.6719957]
[1764990757417,8.1562177,134.12,134.07,8.22]
[1764990757595,0.7,134.11,134.07,12.8919957]
[1764990757783,0.7,134.11,134.08,4.6719957]
[1764990758609,8.15694935,134.11,134.03,7.45564699]
[1764990758800,4.6719957,134.09,134.01,18.65430713]
[1764990759004,4.6719957,134.09,134.04,12.8919957]
[1764990759325,0.72,134.08,134.04,12.8919957]
[1764990759810,0.72,134.08,134.04,8.22]
[1764990760001,0.72,134.08,134.04,12.8919957]
[1764990760706,8.17875537,134.08,134.04,12.8919957]
[1764990760925,8.17875537,134.08,134.04,20.35238493]
[1764990761234,0.72,134.07,134.04,20.35238493]
[1764990762313,8.17767767,134.09,134.05,4.6719957]
[1764990762817,8.17767767,134.09,134.06,4.6719957]
[1764990762818,0.72,134.08,134.06,4.6719957]
[1764990763327,8.17823389,134.08,134.07,0.5]
[1764990764022,8.17823389,134.08,134.05,4.6719957]
[1764990764191,8.17823389,134.08,134.04,8.22]
[1764990764192,0.72,134.07,134.04,8.22]
[1764990764507,7.45823389,134.08,134.05,4.6719957]
[1764990764708,8.17823389,134.08,134.05,4.6719957]
[1764990765312,7.45767767,134.09,134.05,4.6719957]
[1764990765488,0.72,134.08,134.05,4.6719957]
[1764990766812,8.17832087,134.08,134.05,4.6719957]
[1764990767219,0.72,134.07,134.05,4.6719957]
[1764990768403,0.72,134.07,134.04,8.22]
[1764990768812,0.72,134.07,134.04,12.8919957]
[1764990769005,8.17904163,134.07,134.04,8.22]
[1764990769205,0.67,134.07,134.06,4.6719957]
[1764990769510,0.67,134.07,134.06,12.8919957]
[1764990770013,0.67,134.07,134.06,8.22]
[1764990770793,0.67,134.07,134.06,12.8919957]
[1764990771299,0.67,134.07,134.06,8.22]
[1764990771703,0.67,134.07,134.06,12.8919957]
[1764990772021,7.45851869,134.08,134.06,12.8919957]
[1764990772222,8.12851869,134.08,134.06,12.8919957]
[1764990772406,0.67,134.07,134.06,12.8919957]
[1764990772921,0.67,134.07,134.06,8.22]
[1764990773521,0.67,134.07,134.06,8.72]
[1764990776715,0.67,134.07,134.06,13.3919957]
[1764990777826,8.12879018,134.07,134.06,8.72]
[1764990780327,8.12879018,134.07,134.06,8.22]
[1764990780829,8.12879018,134.07,134.04,4.6719957]
[1764990781032,0.67,134.06,134.05,8.22]
[1764990781528,8.12934656,134.06,134.05,8.22]
[1764990783657,0.67,134.06,134.05,8.22]
[1764990785212,8.12934656,134.06,134.05,8.22]
[1764990785716,0.67,134.06,134.05,8.22]
[1764990786433,0.67,134.06,134.04,4.6719957]
[1764990786626,0.67,134.06,134.05,8.22]
[1764990790240,0.67,134.06,134.04,4.6719957]
[1764990790539,7.45767767,134.09,134.05,12.8919957]
[1764990790741,0.7,134.08,134.06,4.6719957]
[1764990792445,0.7,134.08,134.05,15.67986798]
[1764990792446,0.7,134.08,134.07,4.6719957]
[1764990793323,110.04480046,134.1,134.07,4.6719957]
[1764990793519,110.04480046,134.1,134.09,4.6719957]
[1764990794320,8.15677742,134.11,134.09,4.6719957]
[1764990794541,0.7,134.11,134.1,4.6719957]
[1764990796150,0.7,134.11,134.09,0.5]
[1764990796340,8.1565655,134.11,134.1,8.22]
[1764990797020,8.1565655,134.11,134.09,5.1719957]
[1764990797225,7.4565655,134.11,134.1,8.22]
[1764990797745,8.1565655,134.11,134.1,8.22]
[1764990801250,8.1565655,134.11,134.09,8.22]
[1764990801455,0.7,134.1,134.09,8.22]
[1764990803059,8.15712155,134.1,134.09,8.22]
[1764990806550,8.15712155,134.1,134.09,12.8919957]
[1764990806929,8.15712155,134.1,134.09,8.22]
[1764990808753,8.15712155,134.1,134.05,10.36171929]
[1764990808956,0.7,134.09,134.06,8.22]
[1764990809857,7.45823389,134.08,134.06,8.22]
[1764990810058,7.45823389,134.08,134.06,12.8919957]
[1764990810250,0.7,134.07,134.06,12.8919957]
[1764990810653,8.15823389,134.08,134.06,12.8919957]
[1764990811044,8.15823389,134.08,134.06,8.22]
[1764990812059,8.15823389,134.08,134.0,18.6558982]
[1764990812060,0.7,134.07,134.0,18.6558982]
[1764990812239,0.7,134.07,134.02,4.6719957]
[1764990813755,5.3719957,134.07,134.02,4.6719957]
[1764990813947,7.45934656,134.06,134.02,4.6719957]
[1764990814255,8.15934656,134.06,134.03,8.22]
[1764990814460,0.7,134.05,134.03,8.22]
[1764990815044,0.7,134.05,133.99,7.46320075]
[1764990815045,8.16036045,134.05,133.99,7.46320075]
[1764990815253,8.16036045,134.05,134.01,4.6719957]
[1764990815563,0.7,134.04,134.01,4.6719957]
[1764990815749,0.7,134.04,134.0,8.22]
[1764990815951,0.7,134.04,134.01,4.6719957]
[1764990816764,8.16047183,134.04,134.01,4.6719957]
[1764990818459,8.16047183,134.04,134.01,2.99338785]
[1764990818769,8.16047183,134.04,134.02,2.99338785]
[1764990818970,0.67,134.04,134.02,2.99338785]
[1764990819268,0.67,134.04,134.01,11.21338785]
[1764990819749,0.67,134.04,134.02,2.99338785]
[1764990820348,0.67,134.04,134.01,8.22]
[1764990820760,8.13056619,134.04,134.01,8.22]
[1764990821464,0.67,134.03,134.01,8.22]
[1764990823349,0.67,134.05,134.02,2.99338785]
[1764990824575,0.67,134.05,134.03,8.22]
[1764990825070,8.13043518,134.05,134.03,8.22]
[1764990825465,0.67,134.04,134.03,8.22]
[1764990826772,8.13045956,134.04,134.03,8.22]
[1764990829979,8.13045956,134.04,134.0,2.99338785]
[1764990830165,0.67,134.03,134.02,8.22]
[1764990831271,8.13101619,134.03,134.02,8.22]
[1764990831477,8.13101619,134.03,134.01,8.22]
[1764990831670,0.67,134.02,134.01,8.22]
[1764990832379,7.46101619,134.03,134.01,11.21338785]
[1764990832968,8.13101619,134.03,134.01,11.21338785]
[1764990833378,8.13101619,134.03,134.01,8.22]
[1764990834776,0.67,134.02,134.01,11.21338785]
[1764990836351,0.67,134.02,134.01,8.22]
[1764990836580,0.67,134.02,134.0,8.22]
[1764990837269,0.67,134.02,133.99,2.99338785]
[1764990837584,0.67,134.02,134.0,8.22]
[1764990838464,8.13167236,134.02,134.0,11.21338785]
[1764990838785,7.46117295,134.03,134.01,2.99338785]
[1764990838955,8.13117295,134.03,134.0,8.22]
[1764990839156,8.13117295,134.03,134.01,2.99338785]
[1764990839583,7.46117295,134.03,134.01,2.99338785]
[1764990839773,0.67,134.02,134.01,2.99338785]
[1764990841760,0.67,134.02,134.0,11.21338785]
[1764990842866,8.13167398,134.02,134.0,8.22]
[1764990843296,0.67,134.01,133.99,2.99338785]
[1764990843499,0.67,134.01,134.0,8.22]
[1764990844082,2.99338785,134.05,134.0,8.22]
[1764990844083,0.67,134.05,134.0,11.21338785]
[1764990844395,0.67,134.04,134.03,2.99338785]
[1764990844698,0.67,134.04,134.03,8.22]
[1764990845201,8.13045956,134.04,134.03,8.22]
[1764990847095,0.67,134.04,134.03,8.22]
[1764990848691,8.13045956,134.04,134.03,8.22]
[1764990852096,8.13045956,134.04,134.02,2.99338785]
[1764990852299,8.13045956,134.04,134.03,8.22]
[1764990856105,8.12001466,134.05,134.03,11.21338785]
[1764990856487,0.66,134.04,134.03,11.21338785]
[1764990857400,0.66,134.04,134.03,8.22]
[1764990861109,0.66,134.04,134.03,11.21338785]
[1764990863192,0.66,134.04,134.03,8.22]
[1764990875824,0.66,134.04,134.02,2.99338785]
[1764990876029,8.12057599,134.04,134.02,11.21338785]
[1764990876208,0.66,134.04,134.02,11.21338785]
[1764990876407,0.66,134.03,134.02,11.21338785]
[1764990878213,0.66,134.03,134.02,8.22]
[1764990878410,0.66,134.03,134.01,10.4555073]
[1764990878411,0.66,134.03,134.01,2.99338785]
[1764990878611,0.66,134.03,134.01,11.21338785]
[1764990879031,0.69,134.05,134.02,2.99338785]
[1764990879232,0.69,134.05,134.03,2.99338785]
[1764990880425,0.69,134.05,134.03,4.67619981]
[1764990881126,0.69,134.05,134.04,8.22]
[1764990883213,8.22,134.07,134.04,8.22]
[1764990883414,0.69,134.06,134.04,12.89619981]
[1764990885438,0.69,134.06,134.04,8.22]
[1764990886721,0.69,134.06,134.03,8.22]
[1764990886722,8.14949242,134.06,134.03,8.22]
[1764990886925,12.82569223,134.06,134.02,8.22]
[1764990887125,0.69,134.05,134.02,8.22]
[1764990887728,0.69,134.05,134.0,4.67619981]
[1764990887931,0.69,134.05,134.01,8.22]
[1764990888841,7.46045956,134.04,134.01,8.22]
[1764990889339,0.71,134.03,134.01,8.22]
[1764990891249,8.1714794,134.03,134.01,8.22]
[1764990891625,0.71,134.02,134.01,8.22]
[1764990894129,0.71,134.04,134.01,12.89619981]
[1764990894323,0.71,134.04,134.02,4.67619981]
[1764990896629,110.05747429,134.05,134.02,4.67619981]
[1764990896946,102.59751546,134.05,134.02,4.67619981]
[1764990897339,102.59751546,134.05,134.02,12.1376876]
[1764990897654,102.59751546,134.05,134.03,4.67619981]
[1764990898144,101.88751546,134.05,134.04,12.89619981]
[1764990898460,101.88751546,134.05,134.04,8.22]
[1764990898764,102.59751546,134.05,134.04,8.22]
[1764990900961,0.71,134.08,134.04,20.35665572]
[1764990903565,0.71,134.08,134.05,4.67619981]
[1764990904633,0.71,134.11,134.07,20.98506381]
[1764990904837,0.71,134.11,134.08,12.89619981]
[1764990905038,0.71,134.12,134.09,4.67619981]
[1764990905240,0.71,134.12,134.09,12.13353999]
[1764990906639,8.16606027,134.12,134.08,19.59238745]
[1764990906978,12.84226008,134.12,134.07,20.98506381]
[1764990907144,5.38619981,134.11,134.09,8.22]
[1764990907556,0.71,134.1,134.09,8.22]
[1764990909690,8.16606027,134.12,134.09,12.89619981]
[1764990909871,0.71,134.11,134.09,12.89619981]
[1764990910071,0.71,134.13,134.1,4.67619981]
[1764990910274,0.71,134.14,134.1,12.13321839]
[1764990911311,0.71,134.14,134.1,11.95721839]
[1764990911795,8.16498503,134.14,134.1,11.95721839]
[1764990912091,8.16498503,134.14,134.1,7.45701858]
[1764990912390,0.71,134.13,134.11,4.67619981]
[1764990912577,0.71,134.13,134.12,8.22]
[1764990917393,0.71,134.13,134.12,8.2]
[1764990918390,0.71,134.13,134.09,12.89619981]
[1764990918691,0.71,134.13,134.11,8.2]
[1764990919891,8.1654975,134.13,134.11,8.2]
[1764990920390,7.4554975,134.13,134.11,8.2]
[1764990920584,0.71,134.12,134.11,8.2]
[1764990920779,0.71,134.12,134.09,12.13375535]
[1764990920780,0.71,134.12,134.08,12.13427022]
[1764990920988,0.71,134.12,134.1,8.2]
[1764990924997,0.71,134.12,134.09,12.13383417]
[1764990925197,0.71,134.12,134.1,8.2]
[1764990926324,0.71,134.12,134.07,34.95353152]
[1764990926325,8.16601953,134.12,134.07,18.64466752]
[1764990926495,4.67619981,134.11,134.07,8.2]
[1764990926672,12.84169731,134.11,134.07,8.2]
[1764990926873,0.71,134.1,134.07,8.2]
[1764990928599,8.16725213,134.1,134.07,8.2]
[1764990929103,0.71,134.09,134.08,0.5]
[1764990929773,0.71,134.09,134.07,8.2]
[1764990934320,8.16809756,134.09,134.04,7.46013588]
[1764990934605,0.71,134.08,134.06,8.2]
[1764990935704,8.16857716,134.08,134.06,8.2]
[1764990936080,0.71,134.07,134.06,8.2]
[1764990937285,8.16857716,134.08,134.06,8.2]
[1764990938420,0.71,134.07,134.06,8.2]
[1764990938903,7.45767767,134.09,134.06,8.2]
[1764990939111,0.71,134.08,134.06,8.2]
[1764990940184,8.16853573,134.08,134.06,8.2]
[1764990940687,0.71,134.07,134.05,2.99174779]
[1764990940986,0.71,134.07,134.06,8.2]
[1764990942404,0.71,134.08,134.06,8.2]
[1764990943602,8.16863357,134.08,134.06,8.2]
[1764990944982,0.71,134.07,134.06,8.2]
[1764990945184,8.16767767,134.09,134.06,8.2]
[1764990945383,0.71,134.08,134.06,8.2]
[1764990947415,8.16853431,134.08,134.04,2.99174779]
[1764990947711,2.99174779,134.07,134.04,8.2]
[1764990947885,3.70174779,134.07,134.04,8.2]
[1764990948086,0.71,134.06,134.04,8.2]
[1764990949308,0.71,134.06,134.02,7.46148506]
[1764990949508,8.16969279,134.06,134.02,7.46148506]
[1764990949810,2.99174779,134.05,134.02,8.2]
[1764990950010,3.68174779,134.05,134.02,8.2]
[1764990950309,0.69,134.04,134.02,8.2]
[1764990953703,8.15053869,134.04,134.01,2.99174779]
[1764990953902,8.15053869,134.04,134.02,8.22]
[1764990954211,0.69,134.03,134.02,8.22]
[1764990954513,0.69,134.03,134.01,8.22]
[1764990954897,3.68174779,134.03,134.0,8.22]
[1764990955396,0.69,134.02,134.0,8.22]
[1764990956297,8.15160072,134.02,134.0,8.22]
[1764990956801,0.69,134.01,134.0,8.22]
[1764990957540,0.69,134.01,133.96,7.46446005]
[1764990957702,0.69,134.01,133.99,2.99174779]
[1764990958404,0.69,134.01,133.97,15.68431878]
[1764990958405,0.69,134.01,133.98,2.99174779]
[1764990958605,0.69,134.01,133.97,7.46431878]
[1764990958606,8.15221542,134.01,133.97,7.46431878]
[1764990958795,8.15221542,134.01,133.98,8.22]
[1764990958999,0.69,134.0,133.98,8.22]
[1764990959420,0.69,134.0,133.96,7.46487939]
[1764990959605,0.69,134.0,133.98,8.22]
[1764990960094,8.15273365,134.0,133.98,8.22]
[1764990960593,0.69,133.99,133.98,8.22]
[1764990961220,7.46228645,134.01,133.98,11.21174779]
[1764990961431,0.69,133.99,133.98,8.22]
[1764990962412,0.69,133.99,133.96,10.45657495]
[1764990962604,0.69,133.99,133.97,8.22]
[1764990962796,0.69,133.99,133.96,10.45657495]
[1764990963197,0.69,133.99,133.97,8.22]
[1764990963525,0.69,133.99,133.96,10.45657495]